bitfinex-derivatives/quotes_ETHF0:USTF0_20250427
["timestamp","ask_amount","ask_price","bid_price","bid_amount"]
[1745728182783,3.67261,1808.7,1808.6,1.10547]
[1745728183780,2.5672,1808.7,1808.6,1.10547]
[1745728184183,6.2892,1808.7,1808.6,1.10547]
[1745728185185,2.5672,1808.7,1808.6,1.10547]
[1745728186578,3.67261,1808.7,1808.6,1.10547]
[1745728187173,2.5672,1808.7,1808.6,1.10547]
[1745728188286,3.67261,1808.7,1808.6,1.10547]
[1745728189087,7.39461,1808.7,1808.6,1.10547]
[1745728189583,6.2892,1808.7,1808.6,1.10547]
[1745728191087,7.39461,1808.7,1808.6,1.10547]
[1745728192489,6.2892,1808.7,1808.6,1.10547]
[1745728195192,2.5672,1808.7,1808.6,1.10547]
[1745728195690,3.67261,1808.7,1808.6,1.10547]
[1745728198092,7.39461,1808.7,1808.6,1.10547]
[1745728201395,6.2892,1808.7,1808.4,4.7919]
[1745728201596,1.10553,1808.5,1808.4,3.2078]
[1745728201982,1.96593,1808.5,1808.4,3.2078]
[1745728202187,0.8604,1808.5,1808.4,4.31339]
[1745728202583,2.5566,1808.5,1808.4,4.31339]
[1745728202788,2.5566,1808.5,1808.2,3.2078]
[1745728202991,3.64421,1808.4,1808.2,1.10567]
[1745728203191,1.6962,1808.3,1808.2,1.10567]
[1745728207197,1.114,1808.8,1808.6,1.10547]
[1745728207398,1.7065,1808.7,1808.6,1.10547]
[1745728208094,1.7065,1808.7,1808.6,1.94197]
[1745728208795,0.0086,1808.8,1808.7,1.10541]
[1745728209101,0.0086,1808.8,1808.7,7.36631]
[1745728210198,0.0086,1808.8,1808.7,3.64431]
[1745728214188,3.7306,1808.8,1808.7,3.64431]
[1745728217210,3.7306,1808.8,1808.6,4.31324]
[1745728217403,3.286,1808.7,1808.6,4.31324]
[1745728218202,7.008,1808.7,1808.6,4.31324]
[1745728218703,7.0166,1808.7,1808.6,4.31324]
[1745728225505,7.0166,1808.7,1808.6,6.00994]
[1745728227206,8.12201,1808.7,1808.6,3.2078]
[1745728227407,1.10547,1808.6,1808.5,4.69649]
[1745728227604,2.80767,1808.6,1808.5,4.69649]
[1745728228109,6.52967,1808.6,1808.5,4.69649]
[1745728230007,6.52967,1808.6,1808.5,1.10549]
[1745728233212,1.10553,1808.5,1808.4,3.2078]
[1745728233407,1.10559,1808.4,1808.3,3.589]
[1745728233715,1.10565,1808.3,1808.2,1.10569]
[1745728233908,2.79855,1808.3,1808.2,1.10569]
[1745728234308,5.4149,1808.3,1808.2,1.10569]
[1745728234810,5.4149,1808.3,1808.2,4.31349]
[1745728238315,5.4235,1808.3,1808.2,4.31349]
[1745728248231,3.7306,1808.3,1808.2,4.31349]
[1745728249135,1.6287,1808.6,1808.5,1.10553]
[1745728249728,1.6287,1808.6,1808.5,2.69683]
[1745728250133,5.3507,1808.6,1808.5,2.69683]
[1745728250631,3.722,1808.6,1808.5,2.69683]
[1745728251435,5.409,1808.6,1808.5,2.69683]
[1745728251635,5.409,1808.6,1808.5,1.10553]
[1745728253335,6.51447,1808.6,1808.5,1.10553]
[1745728253637,1.10553,1808.5,1808.4,3.2078]
[1745728253839,4.36403,1808.5,1808.3,5.55541]
[1745728254334,1.6034,1808.4,1808.3,5.55541]
[1745728254536,2.70899,1808.4,1808.3,3.59]
[1745728254932,1.6034,1808.4,1808.3,4.69565]
[1745728255231,6.43099,1808.4,1808.3,3.59]
[1745728256138,6.43099,1808.4,1808.3,4.69565]
[1745728256436,5.3254,1808.4,1808.3,4.69565]
[1745728257130,5.3254,1808.4,1808.3,1.10565]
[1745728257335,6.43104,1808.4,1808.2,1.10569]
[1745728257536,1.5821,1808.3,1808.2,1.10569]
[1745728258137,5.3041,1808.3,1808.2,1.10569]
[1745728261836,6.40978,1808.3,1808.1,6.78434]
[1745728262026,2.4768,1808.2,1808.1,4.31354]
[1745728262231,3.3067,1808.2,1808.1,4.31354]
[1745728263140,7.0287,1808.2,1808.1,4.31354]
[1745728265136,8.13441,1808.2,1808.1,3.2078]
[1745728265638,7.0287,1808.2,1808.1,4.31357]
[1745728266640,8.13441,1808.2,1808.1,4.31357]
[1745728266939,8.13441,1808.2,1808.1,3.2078]
[1745728268139,8.13441,1808.2,1808.0,4.31359]
[1745728268346,1.6525,1808.1,1808.0,4.31359]
[1745728269237,5.3745,1808.1,1808.0,4.31359]
[1745728269640,5.3745,1808.1,1808.0,1.10579]
[1745728269838,6.48027,1808.1,1808.0,3.2078]
[1745728272149,6.48027,1808.1,1808.0,4.31364]
[1745728272337,5.3745,1808.1,1808.0,4.31364]
[1745728272539,6.48027,1808.1,1808.0,4.31364]
[1745728273945,6.48027,1808.1,1808.0,3.2078]
[1745728274846,6.48027,1808.1,1807.9,4.31365]
[1745728275146,1.6154,1808.0,1807.9,4.31365]
[1745728275350,1.6154,1808.0,1807.9,5.94775]
[1745728276042,5.3374,1808.0,1807.9,5.94775]
[1745728278547,6.44324,1808.0,1807.9,4.8419]
[1745728278747,5.3374,1808.0,1807.7,3.2078]
[1745728278941,3.3767,1807.9,1807.7,3.2078]
[1745728279143,1.7256,1807.8,1807.7,4.31382]
[1745728279341,1.7256,1807.8,1807.7,6.04432]
[1745728280342,5.4476,1807.8,1807.7,6.04432]
[1745728283245,6.55356,1807.8,1807.7,6.04432]
[1745728283444,6.55356,1807.8,1807.7,4.31382]
[1745728283645,5.4476,1807.8,1807.7,4.31382]
[1745728283947,6.55356,1807.8,1807.7,3.2078]
[1745728287152,6.55356,1807.8,1807.6,2.84183]
[1745728287350,1.6547,1807.7,1807.6,6.04963]
[1745728288251,5.3767,1807.7,1807.6,6.04963]
[1745728288953,1.10608,1807.6,1807.5,1.725]
[1745728289251,4.42498,1807.6,1807.5,0.858]
[1745728289648,3.3189,1807.6,1807.5,1.96414]
[1745728290047,4.42498,1807.6,1807.5,1.96414]
[1745728290252,8.14698,1807.6,1807.5,1.96414]
[1745728291051,8.14698,1807.6,1807.5,0.858]
[1745728293056,8.14698,1807.6,1807.4,7.90296]
[1745728293257,1.5858,1807.5,1807.4,7.90296]
[1745728293852,1.5858,1807.5,1807.4,4.69516]
[1745728294044,1.5858,1807.5,1807.4,7.90296]
[1745728294249,5.3078,1807.5,1807.4,7.90296]
[1745728294556,6.41394,1807.5,1807.4,6.7968]
[1745728294759,6.41394,1807.5,1807.4,3.589]
[1745728295059,1.1062,1807.4,1807.3,0.808]
[1745728295255,6.414,1807.4,1807.2,6.80518]
[1745728295457,1.92546,1807.3,1807.2,6.80518]
[1745728295658,3.51126,1807.3,1807.2,6.80518]
[1745728296156,7.23326,1807.3,1807.2,6.80518]
[1745728296560,7.23326,1807.3,1807.2,5.11828]
[1745728297253,1.10633,1807.2,1807.1,3.589]
[1745728297459,1.10642,1807.1,1806.8,10.0193]
[1745728297760,1.6542,1807.0,1806.9,1.10649]
[1745728297947,1.6542,1807.0,1806.9,2.67929]
[1745728298152,5.3762,1807.0,1806.9,2.67929]
[1745728298753,6.2354,1807.0,1806.9,2.67929]
[1745728299360,7.34185,1807.0,1806.9,1.5728]
[1745728299760,7.34185,1807.0,1806.8,9.55303]
[1745728299963,1.6922,1806.9,1806.8,9.55303]
[1745728300163,5.4142,1806.9,1806.8,9.55303]
[1745728302865,5.4142,1806.9,1806.8,6.34523]
[1745728303162,1.6922,1806.9,1806.8,9.55303]
[1745728305365,0.8592,1807.0,1806.9,1.10651]
[1745728305554,1.5952,1807.0,1806.9,2.71361]
[1745728305959,0.8381,1807.2,1807.1,1.10639]
[1745728306159,4.5601,1807.2,1807.1,1.10639]
[1745728306365,6.1553,1807.2,1807.1,1.10639]
[1745728306567,6.1553,1807.2,1807.1,4.33749]
[1745728307166,2.4333,1807.2,1807.1,4.33749]
[1745728312968,3.53963,1807.2,1807.0,4.31422]
[1745728313174,3.66759,1807.1,1807.0,3.2078]
[1745728313663,1.10651,1806.9,1806.8,2.5208]
[1745728313868,1.10655,1806.9,1806.7,3.2078]
[1745728314070,2.5572,1806.8,1806.7,4.3144]
[1745728315370,6.2792,1806.8,1806.7,4.3144]
[1745728318079,6.2792,1806.8,1806.7,5.9699]
[1745728318764,3.722,1806.8,1806.7,5.9699]
[1745728319168,2.5011,1807.0,1806.7,4.8633]
[1745728319367,1.6957,1806.9,1806.8,1.10657]
[1745728320175,5.4177,1806.9,1806.8,1.10657]
[1745728321675,3.722,1806.9,1806.8,1.10657]
[1745728321877,5.3195,1806.9,1806.8,1.10657]
[1745728323970,3.722,1806.9,1806.8,1.10657]
[1745728325174,1.6291,1807.1,1807.0,1.10645]
[1745728325774,1.6291,1807.1,1807.0,1.95215]
[1745728326070,3.59,1807.2,1807.1,1.10639]
[1745728326572,5.2628,1807.2,1807.1,1.10639]
[1745728327075,8.9848,1807.2,1807.1,1.10639]
[1745728327576,5.3948,1807.2,1807.1,1.10639]
[1745728327872,6.50113,1807.2,1807.0,0.8457]
[1745728328078,1.6728,1807.1,1807.0,1.95215]
[1745728330080,5.3948,1807.1,1807.0,1.95215]
[1745728333884,5.3948,1807.1,1807.0,1.10645]
[1745728338185,2.77919,1807.1,1807.0,1.10645]
[1745728338381,1.6728,1807.1,1807.0,1.10645]
[1745728339182,5.3948,1807.1,1806.9,5.17256]
[1745728339484,5.3948,1807.1,1806.8,3.588]
[1745728339485,1.97377,1807.0,1806.8,3.588]
[1745728339684,0.7927,1806.9,1806.7,4.31437]
[1745728339875,2.4303,1806.9,1806.7,4.31437]
[1745728340077,3.53681,1806.9,1806.7,4.31437]
[1745728340278,1.6376,1806.8,1806.7,4.31437]
[1745728341992,1.6376,1806.8,1806.7,1.10657]
[1745728342185,2.74417,1806.8,1806.7,4.31437]
[1745728342781,2.74417,1806.8,1806.7,3.2078]
[1745728344290,1.10688,1806.3,1806.2,7.3104732]
[1745728344691,5.743,1806.5,1806.0,11.8007932]
[1745728344987,3.63294,1806.2,1806.0,11.8007932]
[1745728345194,1.107,1806.1,1806.0,7.3104732]
[1745728345489,2.5352,1806.1,1806.0,7.3104732]
[1745728345689,3.6422,1806.1,1806.0,7.3104732]
[1745728346483,3.6422,1806.1,1806.0,11.0324732]
[1745728347289,6.85,1806.1,1806.0,7.3104732]
[1745728349093,5.743,1806.1,1806.0,7.3104732]
[1745728349393,0.8546,1806.2,1805.9,1.6342]
[1745728349588,3.2078,1806.3,1806.2,1.10694]
[1745728350084,3.2078,1806.3,1806.2,4.82894]
[1745728350285,3.2078,1806.3,1806.2,9.82894]
[1745728350590,3.2078,1806.3,1806.2,6.46314]
[1745728351287,1.6201,1806.5,1806.4,1.10682]
[1745728352288,1.6201,1806.5,1806.4,1.94092]
[1745728352887,3.2078,1806.7,1806.6,1.10669]
[1745728353594,3.2078,1806.7,1806.6,2.69259]
[1745728353791,1.7231,1806.8,1806.6,2.69259]
[1745728354091,1.7211,1806.7,1806.6,2.69259]
[1745728355496,2.82773,1806.7,1806.5,1.92552]
[1745728355685,2.82773,1806.7,1806.5,1.10672]
[1745728355889,2.82779,1806.6,1806.4,3.63287]
[1745728356089,2.82789,1806.5,1806.3,4.31466]
[1745728356288,1.10667,1806.7,1806.3,3.2078]
[1745728356491,2.5153,1806.7,1806.3,4.8998]
[1745728356697,3.62194,1806.7,1806.5,1.10672]
[1745728357005,3.2078,1806.8,1806.7,1.10663]
[1745728357301,4.31437,1806.8,1806.7,1.10663]
[1745728357594,3.2078,1806.8,1806.7,1.10663]
[1745728357794,3.2078,1806.8,1806.5,1.6061]
[1745728357795,4.31437,1806.8,1806.6,1.10665]
[1745728358002,3.2078,1806.8,1806.7,1.10663]
[1745728358390,3.2078,1807.0,1806.7,1.10663]
[1745728358585,3.2078,1807.0,1806.9,1.10651]
[1745728358989,3.2078,1807.0,1806.9,1.96931]
[1745728359190,4.8201,1807.0,1806.9,1.96931]
[1745728360098,8.5421,1807.0,1806.9,0.8628]
[1745728360297,8.5421,1807.0,1806.9,1.96931]
[1745728360697,5.3343,1807.0,1806.9,1.96931]
[1745728360899,8.5421,1807.0,1806.9,1.96931]
[1745728362092,4.8201,1807.0,1806.9,1.96931]
[1745728362794,4.8201,1807.0,1806.9,2.80031]
[1745728363098,8.5421,1807.0,1806.9,2.80031]
[1745728363795,8.5421,1807.0,1806.9,1.96931]
[1745728363996,8.5421,1807.0,1806.9,1.10651]
[1745728364499,5.3343,1807.0,1806.9,1.10651]
[1745728366094,1.6123,1807.0,1806.9,1.10651]
[1745728367304,6.7958,1807.2,1807.1,1.10639]
[1745728367305,3.2078,1807.2,1807.1,1.10639]
[1745728367807,4.31413,1807.2,1807.0,1.10642]
[1745728368002,1.6779,1807.1,1807.0,1.10642]
[1745728368203,6.50632,1807.1,1806.9,1.10651]
[1745728368505,6.50632,1807.1,1806.9,1.92081]
[1745728368804,1.10653,1806.9,1806.8,1.10657]
[1745728369192,3.722,1806.9,1806.8,1.10657]
[1745728369598,5.4032,1806.9,1806.8,2.82707]
[1745728369905,3.722,1806.9,1806.8,3.64137]
[1745728370106,1.6812,1807.0,1806.9,1.10651]
[1745728370403,1.6812,1807.0,1806.9,2.82701]
[1745728372095,5.4032,1807.0,1806.9,2.82701]
[1745728372606,6.50965,1807.0,1806.8,1.10653]
[1745728372805,1.6893,1806.9,1806.8,1.10653]
[1745728373107,5.4113,1806.9,1806.8,1.10653]
[1745728373496,6.51781,1806.9,1806.8,1.10653]
[1745728375011,5.4113,1806.9,1806.8,1.10653]
[1745728377018,6.51781,1806.9,1806.8,1.10653]
[1745728377219,5.4113,1806.9,1806.8,1.10653]
[1745728378917,6.51781,1806.9,1806.8,1.10653]
[1745728379520,5.4113,1806.9,1806.8,1.10653]
[1745728380318,1.1066,1806.8,1806.5,1.5898]
[1745728380520,0.8383,1806.7,1806.6,1.10667]
[1745728381119,3.59613,1806.7,1806.6,1.10667]
[1745728381419,2.4895,1806.7,1806.4,1.6333]
[1745728381625,3.2078,1806.5,1806.4,2.74008]
[1745728381811,3.2078,1806.5,1806.4,1.10678]
[1745728382015,4.0375,1806.5,1806.4,1.10678]
[1745728382319,5.6887,1806.5,1806.4,1.10678]
[1745728383131,2.4809,1806.5,1806.4,1.10678]
[1745728384423,1.6512,1806.5,1806.4,1.10678]
[1745728384627,4.0461,1806.7,1806.6,1.10669]
[1745728384926,3.2078,1806.9,1806.3,1.6964]
[1745728385118,2.5601,1807.1,1807.0,1.10645]
[1745728385322,1.7006,1807.1,1807.0,1.10645]
[1745728386220,5.4226,1807.1,1807.0,1.10645]
[1745728387131,1.7006,1807.1,1807.0,1.10645]
[1745728387929,0.8595,1807.2,1807.1,1.10639]
[1745728388123,3.67583,1807.2,1807.1,1.10639]
[1745728389029,2.5695,1807.2,1807.1,1.10639]
[1745728389324,6.2915,1807.2,1807.1,1.10639]
[1745728389621,5.432,1807.2,1807.1,1.10639]
[1745728391828,6.53833,1807.2,1807.1,1.10639]
[1745728392126,6.53833,1807.2,1807.0,1.10641]
[1745728392332,2.4939,1807.1,1807.0,1.10641]
[1745728393223,6.2159,1807.1,1807.0,1.10641]
[1745728396133,2.4939,1807.1,1807.0,1.10641]
[1745728396434,3.60032,1807.1,1806.9,1.10646]
[1745728396725,2.5216,1807.0,1806.9,1.10646]
[1745728396930,1.6753,1807.0,1806.9,1.10646]
[1745728397127,1.6753,1807.0,1806.9,4.82846]
[1745728397634,4.0541,1807.2,1807.1,1.10639]
[1745728397825,5.7294,1807.2,1807.1,1.10639]
[1745728398025,6.83573,1807.2,1807.1,1.10639]
[1745728399033,5.7294,1807.2,1807.1,1.10639]
[1745728400627,4.8831,1807.2,1807.1,1.10639]
[1745728402134,8.6051,1807.2,1807.1,1.10639]
[1745728403033,5.3973,1807.2,1807.1,1.10639]
[1745728410638,3.722,1807.2,1807.1,1.10639]
[1745728410839,3.722,1807.2,1807.1,6.10639]
[1745728411041,3.722,1807.2,1807.1,6.96469]
[1745728411240,3.2078,1807.3,1807.2,1.10633]
[1745728411635,0.862,1807.5,1807.4,1.1062]
[1745728411834,2.4387,1807.5,1807.4,1.1062]
[1745728412140,6.1607,1807.5,1807.4,1.1062]
[1745728412342,7.26684,1807.5,1807.4,1.1062]
[1745728412534,8.07814,1807.5,1807.4,1.1062]
[1745728412732,8.07814,1807.5,1807.3,1.10623]
[1745728412935,1.5767,1807.4,1807.3,1.10623]
[1745728413134,6.40492,1807.4,1807.2,1.10633]
[1745728413439,1.10626,1807.3,1807.1,0.8622]
[1745728413635,0.8344,1807.2,1807.1,1.96859]
[1745728413841,1.6902,1807.2,1807.1,1.96859]
[1745728414041,5.4122,1807.2,1807.1,1.96859]
[1745728414644,6.9809,1807.2,1807.1,1.96859]
[1745728416948,8.08723,1807.2,1807.1,1.96859]
[1745728417149,8.08723,1807.2,1807.1,0.8622]
[1745728418046,8.08723,1807.2,1806.7,3.2078]
[1745728418047,11.9809,1807.2,1806.7,3.2078]
[1745728418254,1.1065,1807.0,1806.8,1.10655]
[1745728418547,1.728,1806.9,1806.8,1.10655]
[1745728418747,2.5885,1806.9,1806.8,1.10655]
[1745728418949,3.4379,1806.9,1806.8,1.10655]
[1745728419248,7.1599,1806.9,1806.8,1.10655]
[1745728420148,2.5885,1806.9,1806.8,2.74765]
[1745728420449,3.2078,1807.1,1807.0,1.10645]
[1745728420754,5.7181,1807.1,1807.0,1.10645]
[1745728420942,6.82449,1807.1,1807.0,1.10645]
[1745728421248,10.54649,1807.1,1807.0,1.10645]
[1745728421647,10.54649,1807.1,1806.9,2.74758]
[1745728421850,1.6139,1807.0,1806.9,2.74758]
[1745728427246,1.6139,1807.0,1806.9,1.10648]
[1745728427445,3.56935,1807.0,1806.9,1.10651]
[1745728428857,3.56935,1807.0,1806.8,1.10653]
[1745728429043,3.56935,1807.0,1806.7,3.4303]
[1745728429044,4.8327,1806.9,1806.7,3.4303]
[1745728429248,1.6249,1806.8,1806.7,4.53693]
[1745728429550,1.6249,1806.8,1806.5,3.585]
[1745728429551,2.4666,1806.8,1806.5,3.585]
[1745728429755,1.10666,1806.7,1806.5,4.69173]
[1745728430055,1.10672,1806.6,1806.4,4.41439]
[1745728430243,1.5941,1806.5,1806.4,4.41439]
[1745728430449,2.4358,1806.5,1806.4,4.41439]
[1745728430647,3.54259,1806.5,1806.3,1.10686]
[1745728430848,2.4332,1806.4,1806.3,1.10686]
[1745728431153,2.4332,1806.4,1806.3,4.82886]
[1745728432256,1.5941,1806.4,1806.3,1.10686]
[1745728432444,1.5941,1806.4,1806.3,2.79116]
[1745728433348,3.2078,1806.7,1806.3,1.6843]
[1745728433548,1.6484,1806.5,1806.4,1.10679]
[1745728433954,2.75515,1806.5,1806.3,2.79113]
[1745728434151,1.6484,1806.5,1806.3,6.51313]
[1745728434357,1.6484,1806.4,1806.3,4.82883]
[1745728435160,1.6484,1806.4,1806.3,1.10683]
[1745728436358,1.6484,1806.4,1806.3,2.75113]
[1745728439155,1.6484,1806.4,1806.3,6.47313]
[1745728443060,1.6484,1806.4,1806.3,2.75113]
[1745728443272,1.6484,1806.4,1806.2,8.9029]
[1745728443273,1.6484,1806.4,1806.2,10.00982]
[1745728443457,0.7992,1806.3,1806.2,6.42482]
[1745728443761,0.7992,1806.3,1806.2,5.63602]
[1745728443961,1.6268,1806.3,1806.2,5.63602]
[1745728444163,1.6268,1806.3,1806.2,1.91402]
[1745728444460,1.6268,1806.3,1806.2,3.56672]
[1745728445258,5.9415,1806.3,1806.1,0.8539]
[1745728445453,1.5963,1806.2,1806.0,7.13193]
[1745728446263,1.5963,1806.2,1806.0,5.52083]
[1745728446463,1.5963,1806.2,1806.0,7.13193]
[1745728446777,2.70324,1806.2,1806.0,6.0249]
[1745728447057,2.70324,1806.2,1806.0,4.4138]
[1745728447260,2.7033,1806.1,1805.9,1.90159]
[1745728447458,1.5963,1806.0,1805.9,1.90159]
[1745728447862,1.5963,1806.0,1805.9,3.51269]
[1745728448165,1.5963,1806.0,1805.9,3.51272]
[1745728448463,2.4373,1806.0,1805.9,1.10712]
[1745728448665,3.54436,1806.0,1805.8,4.51486]
[1745728449161,2.69952,1805.9,1805.8,3.4077]
[1745728449359,2.69952,1805.9,1805.8,1.6857]
[1745728449555,2.69952,1805.9,1805.6,1.722]
[1745728449556,4.8002,1805.9,1805.6,1.722]
[1745728449758,2.69962,1805.8,1805.6,3.66629]
[1745728449962,1.5924,1805.7,1805.6,1.10731]
[1745728450157,1.5924,1805.7,1805.0,7.3104732]
[1745728450158,5.6412,1805.7,1805.0,14.1032732]
[1745728450357,4.31521,1805.5,1805.2,3.66701]
[1745728450665,3.2078,1805.5,1805.2,0.8375]
[1745728450864,2.4218,1805.4,1805.2,3.66701]
[1745728451167,2.4218,1805.4,1805.3,1.10749]
[1745728451763,2.4218,1805.4,1805.3,2.82559]
[1745728452160,3.52923,1805.4,1805.3,3.722]
[1745728452366,12.11523,1805.4,1805.3,3.722]
[1745728453155,1.10761,1805.1,1805.0,7.3104732]
[1745728453362,3.2078,1805.2,1804.7,1.7181]
[1745728453667,3.2078,1805.2,1804.8,1.7181]
[1745728453968,2.81983,1805.1,1804.9,1.10772]
[1745728454166,1.7122,1805.0,1804.9,1.10772]
[1745728454369,2.81989,1805.0,1804.8,2.82586]
[1745728454668,1.7122,1805.0,1804.8,2.82585]
[1745728454867,1.677,1804.9,1804.8,2.82585]
[1745728455065,1.677,1804.9,1804.8,6.54785]
[1745728455670,5.11948,1805.2,1804.8,5.4401]
[1745728455869,1.677,1805.1,1804.9,1.6382]
[1745728456072,1.4205,1805.3,1804.9,4.846]
[1745728456277,3.0975,1805.3,1805.1,1.10755]
[1745728456775,6.7938,1805.4,1805.3,1.10749]
[1745728456970,3.2078,1805.4,1805.3,1.10749]
[1745728457273,3.2078,1805.4,1805.0,2.79675]
[1745728457274,1.10757,1805.2,1805.0,2.79675]
[1745728457672,1.6462,1805.1,1805.0,2.79675]
[1745728458072,1.6462,1805.1,1805.0,0.8223]
[1745728458474,1.6462,1805.1,1805.0,1.92997]
[1745728459577,1.6462,1805.1,1805.0,3.61837]
[1745728459878,1.6462,1805.1,1805.0,1.10767]
[1745728460276,1.6462,1805.1,1805.0,3.66407]
[1745728460780,1.6462,1805.1,1804.9,4.3155]
[1745728460982,1.10772,1805.0,1804.8,1.89418]
[1745728461276,1.10772,1805.0,1804.2,3.2078]
[1745728461277,5.6902,1804.9,1804.2,3.2078]
[1745728461483,2.5135,1804.8,1804.5,3.2078]
[1745728461678,2.5135,1804.8,1804.7,1.10786]
[1745728462275,1.6637,1804.8,1804.7,4.82986]
[1745728462479,3.2078,1804.9,1804.8,1.1078]
[1745728462676,3.2078,1804.9,1804.8,3.5926]
[1745728463079,8.4878,1805.3,1804.8,10.6926]
[1745728463279,8.4878,1805.3,1805.1,1.10757]
[1745728463482,1.6871,1805.2,1805.1,1.10757]
[1745728464080,6.6871,1805.2,1804.8,3.722]
[1745728464273,4.31545,1805.1,1804.8,1.10776]
[1745728464468,4.8949,1805.1,1804.7,2.3898]
[1745728464676,3.2078,1804.9,1804.7,3.49762]
[1745728464876,1.6871,1804.8,1804.7,3.49762]
[1745728465275,1.6871,1804.8,1804.7,4.82986]
[1745728465875,3.2078,1804.9,1804.8,1.1078]
[1745728466078,3.2078,1805.3,1804.8,8.5231]
[1745728466284,3.2078,1805.3,1805.2,1.10755]
[1745728467483,3.2078,1805.3,1805.0,1.6709]
[1745728467685,3.2078,1805.3,1805.2,1.10755]
[1745728468075,3.2078,1805.3,1805.2,4.82955]
[1745728469085,3.2078,1805.3,1805.2,5.61475]
[1745728469389,2.5403,1805.4,1805.3,1.10749]
[1745728469976,2.5403,1805.4,1805.3,2.74489]
[1745728470173,3.588,1805.5,1805.4,1.10743]
[1745728470583,5.2297,1805.5,1805.4,1.10743]
[1745728471589,6.33708,1805.5,1805.3,2.74486]
[1745728471784,1.6417,1805.4,1805.3,2.74486]
[1745728472490,2.4598,1805.4,1805.3,2.74486]
[1745728474384,2.4598,1805.4,1805.3,1.10746]
[1745728474592,3.56723,1805.4,1805.2,1.89271]
[1745728474793,1.6152,1805.3,1805.2,1.10751]
[1745728475088,1.6152,1805.3,1805.1,1.10759]
[1745728475089,2.72272,1805.3,1805.1,1.10759]
[1745728475488,1.6152,1805.2,1805.1,1.10759]
[1745728477496,1.10761,1805.1,1805.0,0.8189]
[1745728477689,2.72279,1805.2,1805.0,1.10765]
[1745728477889,0.8685,1805.1,1805.0,1.10765]
[1745728478186,1.10767,1805.0,1804.9,0.8237]
[1745728478393,3.56895,1805.1,1804.9,1.93141]
[1745728478696,1.5928,1805.0,1804.9,1.93141]
[1745728479197,0.8685,1805.1,1805.0,1.10767]
[1745728479385,3.2078,1805.2,1805.1,1.10761]
[1745728479590,3.65392,1805.3,1805.1,1.10761]
[1745728479791,4.6283,1805.4,1805.3,1.10749]
[1745728480090,7.41363,1805.4,1805.2,1.10751]
[1745728480295,1.6779,1805.3,1805.2,1.10751]
[1745728481193,2.78539,1805.3,1805.2,1.10751]
[1745728481391,1.6779,1805.3,1805.1,1.7189]
[1745728481591,1.6779,1805.2,1805.1,2.82651]
[1745728482496,2.5134,1805.2,1805.1,2.82651]
[1745728484098,2.5134,1805.2,1805.1,1.10761]
[1745728484300,5.7212,1805.2,1805.0,1.10765]
[1745728484500,2.3923,1805.1,1805.0,1.10765]
[1745728489401,3.49991,1805.1,1805.0,1.10765]
[1745728489702,3.49991,1805.1,1804.9,5.13919]
[1745728489999,1.6623,1805.0,1804.9,5.13919]
[1745728490198,1.6623,1805.0,1804.9,10.47289]
[1745728491594,1.6623,1805.0,1804.9,7.26509]
[1745728492102,1.6623,1805.0,1804.9,3.54309]
[1745728493105,1.6623,1805.0,1804.9,7.26509]
[1745728494290,1.6623,1805.0,1804.9,3.54309]
[1745728494495,1.6623,1805.0,1804.9,1.10769]
[1745728495103,1.6623,1805.0,1804.9,4.82969]
[1745728495302,1.6623,1805.0,1804.9,6.49249]
[1745728497807,2.76997,1805.0,1804.9,5.3848]
[1745728498107,2.76997,1805.0,1804.9,6.49254]
[1745728498403,2.76393217,1805.0,1804.9,6.49254]
[1745728498706,1.65626217,1805.0,1804.9,6.49254]
[1745728499104,2.76393217,1805.0,1804.9,1.6628]
[1745728500308,2.76393217,1805.0,1804.9,2.77054]
[1745728502514,2.76393217,1805.0,1804.9,1.6628]
[1745728502808,2.76393217,1805.0,1804.9,2.77054]
[1745728503310,2.76393217,1805.0,1804.9,6.49254]
[1745728503511,2.76393217,1805.0,1804.9,5.3848]
[1745728504311,7.76393217,1805.0,1804.9,3.722]
[1745728504612,10.97173217,1805.0,1804.9,3.722]
[1745728505306,1.10794,1804.6,1804.4,1.108]
[1745728505507,0.8688,1804.5,1804.4,1.108]
[1745728505917,0.8688,1804.5,1804.4,2.8457]
[1745728506108,3.2078,1804.6,1804.5,1.10798]
[1745728506408,3.59,1804.8,1804.7,1.10786]
[1745728506409,7.6666,1804.8,1804.7,1.10786]
[1745728507242,8.7744,1804.8,1804.7,5.3592]
[1745728507851,8.7744,1804.8,1804.7,6.46706]
[1745728508138,8.7744,1804.8,1804.7,2.74506]
[1745728508346,7.6666,1804.8,1804.7,2.74506]
[1745728508543,1.6912,1804.9,1804.8,1.1078]
[1745728508843,1.6912,1804.9,1804.8,3.5351]
[1745728509230,1.6912,1804.9,1804.8,7.2571]
[1745728509623,1.6912,1804.9,1804.8,3.722]
[1745728509828,1.6912,1804.9,1804.8,4.8298]
[1745728510026,11.00674,1804.9,1804.8,3.722]
[1745728510222,1.10794,1804.6,1804.4,1.10801]
[1745728510814,0.8219,1804.5,1804.4,1.10801]
[1745728511209,3.2078,1804.7,1804.3,1.6298]
[1745728511418,0.8284,1804.8,1804.7,1.10786]
[1745728511819,1.9362,1804.8,1804.7,1.10786]
[1745728512139,1.9362,1804.8,1804.6,2.81928]
[1745728513435,5.144,1804.8,1804.6,2.81928]